[Event "TUR-ch Youth U17 2019"]
[Site "Belek"]
[Date "2019.01.26"]
[Round "11"]
[White "Akti, Ezgi"]
[Black "Catal, Uktenur"]
[Result "1-0"]
[ECO "C01"]
[WhiteElo "1713"]
[BlackElo "1854"]
[Annotator "NA"]
[PlyCount "109"]
[EventDate "2019.01.20"]
[EventType "swiss"]
[EventCountry "TUR"]
[SourceTitle "playchess.com"]
[Source "ChessBase"]
[SourceQuality "1"]
[TimeControl "5400+30"]

1. e4 {[%emt 0:00:30]} e6 {[%emt 0:00:30]} 2. d4 {[%emt 0:00:30]} d5 {[%emt 0:00:00]} 3. Bd3 {[%emt 0:00:00]} c5 {[%emt 0:01:00]} 4. exd5 {[%emt 0:01:00]} exd5 {[%emt 0:00:00]} 5. dxc5 {[%emt 0:00:30]} Bxc5 {[%emt 0:00:00]} 6. Nf3 {[%emt 0:02:30]} Nf6 {[%emt 0:00:30]} 7. O-O {[%emt 0:02:30]} O-O {[%emt 0:00:00]} 8. Nc3 {[%emt 0:02:30] LiveBook: 51 Games} Be6 {[%emt 0:09:00] C01: French: Exchange Variation} (8... Nc6 9. Bg5 Be6 10. Qd2 Re8 11. Rfe1 h6 12. Bh4 d4 13. Bxf6 Qxf6 14. Ne4 Qe7 15. a3 Bb6 16. Re2 a5 17. Ng3 a4 {½-½ (70) Bauer,C (2644)-Ernst,S (2541) Maastricht 2018}) 9. Bf4 {[%emt 0:06:30]} Nc6 {[%emt 0:00:30]} 10. h3 {[%emt 0:07:30]} Rc8 $146 {[%emt 0:08:30]} ({Predecessor:} 10... Re8 11. a3 Qd7 12. Re1 Rad8 13. Qd2 a6 14. Rad1 Ne7 15. Ne5 Qc8 {½-½ (23) Acs,P (1746)-Toth,A (1754) Budapest 2015}) 11. Bg5 {[%emt 0:38:30]} h6 {[%emt 0:13:30]} 12. Bh4 {[%emt 0:02:30]} Be7 {[%emt 0:01:30]} 13. Ne2 {[%emt 0:03:30]} g5 {[%emt 0:09:30]} 14. Bg3 {[%emt 0:00:30]} Ne4 {[%emt 0:06:30]} 15. c3 {[%emt 0:07:30]} Bc5 {[%emt 0:07:30]} 16. Bc2 {[%emt 0:11:21]} f5 {[%emt 0:01:30]} 17. b4 {[%emt 0:04:31]} Bb6 {[%emt 0:00:30]} 18. b5 {[%emt 0:01:24]} Na5 {[%emt 0:00:30]} 19. Be5 {[%emt 0:00:19]} Nc4 {[%emt 0:02:30]} 20. Bd4 {[%emt 0:00:44]} Bf7 {[%emt 0:03:30]} 21. Bxb6 {[%emt 0:03:02]} Nxb6 {[%emt 0:07:30]} 22. Nfd4 {[%emt 0:01:20]} Qf6 {[%emt 0:05:30]} 23. Qd3 {[%emt 0:00:31]} Nc4 {[%emt 0:01:45]} 24. Ng3 {[%emt 0:01:03]} Ncd6 {[%emt 0:02:16]} 25. Nge2 {[%emt 0:00:38]} Rc7 {[%emt 0:07:16]} 26. Rac1 {[%emt 0:00:23]} Rfc8 {[%emt 0:02:14]} 27. Bb1 {[%emt 0:00:06]} Nc4 {[%emt 0:00:45]} 28. f3 {[%emt 0:01:20]} Ne5 {[%emt 0:01:10]} 29. Qc2 {[%emt 0:00:16]} Nxc3 {[%emt 0:00:32]} 30. Nxc3 {[%emt 0:01:00]} Rxc3 {[%emt 0:00:04]} 31. Qxc3 {[%emt 0:00:43]} Rxc3 {[%emt 0:00:30]} 32. Rxc3 {[%emt 0:00:30]} Nc6 {[%emt 0:00:00]} 33. Ne2 {[%emt 0:00:05]} d4 {[%emt 0:00:00]} 34. Rcc1 {[%emt 0:00:30]} Nb4 {[%emt 0:02:53]} 35. a3 {[%emt 0:00:28]} d3 {[%emt 0:01:22]} 36. axb4 {[%emt 0:00:51]} dxe2 {[%emt 0:00:30]} 37. Rfe1 {[%emt 0:00:00] [#]} Qd4+ $19 {[%emt 0:00:07]} 38. Kh1 {[%emt 0:00:00]} Bc4 {[%emt 0:00:51]} 39. Bxf5 {[%emt 0:01:04]} Kg7 {[%emt 0:00:20]} 40. Bg4 {[%emt 0:00:27]} Kf6 {[%emt 0:00:17]} 41. Rb1 {[%emt 0:00:24]} Bxb5 {[%emt 0:00:38]} 42. f4 {[%emt 0:00:33]} Qf2 {[%emt 0:01:29]} 43. fxg5+ {[%emt 0:00:24]} hxg5 {[%emt 0:00:24]} 44. Bf3 {[%emt 0:00:27]} Ke5 {[%emt 0:01:06]} 45. Bxb7 {[%emt 0:01:02]} Kd4 {[%emt 0:00:38]} 46. Bf3 {[%emt 0:00:20]} Kc3 {[%emt 0:00:54]} 47. Rg1 {[%emt 0:00:42]} Bd3 {[%emt 0:00:28]} 48. Ra1 {[%emt 0:00:14]} Kd2 {[%emt 0:01:17]} 49. Ra2+ {[%emt 0:00:14]} Bc2 {[%emt 0:00:00]} 50. Raa1 {[%emt 0:01:12]} Bd1 {[%emt 0:00:00]} 51. Raxd1+ {[%emt 0:00:42]} exd1=Q {[%emt 0:00:21]} 52. Rxd1+ {[%emt 0:00:00]} Kc3 {[%emt 0:00:13]} 53. b5 {[%emt 0:00:00]} Kc2 {[%emt 0:01:00]} 54. Ra1 {[%emt 0:00:05]} Kd2 {[%emt 0:00:59]} 55. Ra2+ {[%emt 0:00:03]} 1-0

[Event "TUR-ch Youth U17 2019"]
[Site "Belek"]
[Date "2019.01.26"]
[Round "11"]
[White "Esti, Kubra Selenay"]
[Black "Sahin, Hayrun Nisa"]
[Result "1/2-1/2"]
[ECO "B23"]
[WhiteElo "1662"]
[BlackElo "1743"]
[Annotator "NA"]
[PlyCount "86"]
[EventDate "2019.01.20"]
[EventType "swiss"]
[EventCountry "TUR"]
[SourceTitle "playchess.com"]
[Source "ChessBase"]
[SourceQuality "1"]
[TimeControl "5400+30"]

1. e4 {[%emt 0:00:30]} c5 {[%emt 0:00:30]} 2. Nc3 {[%emt 0:00:00]} e6 {[%emt 0:00:30]} 3. d3 {[%emt 0:04:00]} d5 {[%emt 0:02:30]} 4. g3 {[%emt 0:00:30]} Nc6 {[%emt 0:02:30]} 5. Bg2 {[%emt 0:01:30]} d4 {[%emt 0:04:30]} 6. Nce2 {[%emt 0:01:30]} b5 {[%emt 0:01:30]} 7. f4 {[%emt 0:06:30]} Ba6 {[%emt 0:04:30]} 8. Nh3 {[%emt 0:11:30]} Qb6 {[%emt 0:02:30]} 9. Nf2 {[%emt 0:04:30]} Rc8 {[%emt 0:12:30]} 10. Bd2 {[%emt 0:05:30]} c4 {[%emt 0:11:30]} 11. O-O {[%emt 0:13:30]} Nf6 {[%emt 0:04:30]} 12. h3 {[%emt 0:08:30]} Nd7 {[%emt 0:08:30]} 13. g4 {[%emt 0:14:30]} Be7 {[%emt 0:01:30]} 14. Ng3 {[%emt 0:04:49]} Nc5 {[%emt 0:04:30]} 15. Qf3 {[%emt 0:06:14]} cxd3 {[%emt 0:13:30]} 16. Nxd3 {[%emt 0:02:17]} b4 {[%emt 0:01:30]} 17. Rf2 {[%emt 0:03:04]} Bh4 {[%emt 0:04:09]} 18. Nxc5 {[%emt 0:08:02]} Qxc5 {[%emt 0:00:33]} 19. g5 {[%emt 0:01:01]} O-O {[%emt 0:04:01]} 20. a3 {[%emt 0:00:40]} bxa3 {[%emt 0:02:33]} 21. Rxa3 {[%emt 0:00:09]} Qb6 {[%emt 0:00:22]} 22. Rb3 {[%emt 0:00:25]} Qd8 {[%emt 0:00:47]} 23. Ra3 {[%emt 0:00:38]} Bb7 {[%emt 0:00:26]} 24. Qh5 {[%emt 0:01:04]} Bxg3 {[%emt 0:09:57]} 25. Rxg3 {[%emt 0:00:30]} f5 {[%emt 0:00:30]} 26. gxf6 {[%emt 0:00:30]} Qxf6 {[%emt 0:00:30]} 27. e5 {[%emt 0:00:30]} Qf7 {[%emt 0:00:30]} 28. Qg5 {[%emt 0:00:30]} Rc7 {[%emt 0:00:30]} 29. Be4 {[%emt 0:00:30]} Kh8 {[%emt 0:00:30]} 30. Qh4 {[%emt 0:00:30]} g5 {[%emt 0:00:30]} 31. Qh6 {[%emt 0:00:30]} Nxe5 {[%emt 0:00:30]} 32. Bxb7 {[%emt 0:00:30]} Rxb7 {[%emt 0:00:30]} 33. Rxg5 {[%emt 0:00:30]} Rb5 {[%emt 0:00:30]} 34. Be1 {[%emt 0:00:30]} Nf3+ {[%emt 0:00:30]} 35. Rxf3 {[%emt 0:00:30]} Rxg5+ {[%emt 0:00:30]} 36. Kh2 {[%emt 0:00:30]} Rg6 {[%emt 0:00:30]} 37. Qh4 {[%emt 0:00:30]} Qb7 {[%emt 0:00:30]} 38. Qf2 {[%emt 0:00:30]} Rfg8 {[%emt 0:00:30]} 39. Qxd4+ {[%emt 0:00:00]} Qg7 {[%emt 0:00:28]} 40. Bc3 {[%emt 0:00:25]} e5 {[%emt 0:00:30]} 41. Qxe5 {[%emt 0:00:30]} Rg2+ {[%emt 0:00:30]} 42. Kh1 {[%emt 0:00:30]} Rg1+ {[%emt 0:00:30]} 43. Kh2 {[%emt 0:00:30]} Rg2+ {[%emt 0:00:34]} 1/2-1/2

[Event "TUR-ch Youth U17 2019"]
[Site "Belek"]
[Date "2019.01.26"]
[Round "11"]
[White "Altay, Servet Hakan"]
[Black "Acar, Utku Cengiz"]
[Result "0-1"]
[ECO "B49"]
[WhiteElo "1361"]
[BlackElo "2078"]
[Annotator "NA"]
[PlyCount "56"]
[EventDate "2019.01.20"]
[EventType "swiss"]
[EventCountry "TUR"]
[SourceTitle "playchess.com"]
[Source "ChessBase"]
[SourceQuality "1"]
[TimeControl "5400+30"]

1. e4 {[%emt 0:00:30]} c5 {[%emt 0:00:30]} 2. Nf3 {[%emt 0:00:30]} e6 {[%emt 0:00:30]} 3. d4 {[%emt 0:00:30]} cxd4 {[%emt 0:00:30]} 4. Nxd4 {[%emt 0:00:00]} Nc6 {[%emt 0:00:00]} 5. Nc3 {[%emt 0:00:00]} Qc7 {[%emt 0:00:00]} 6. Be3 {[%emt 0:00:00]} a6 {[%emt 0:00:00]} 7. a3 {[%emt 0:00:00]} Nf6 {[%emt 0:01:00]} 8. Be2 {[%emt 0:00:00]} b5 {[%emt 0:01:30]} 9. O-O {[%emt 0:00:00]} Bb7 {[%emt 0:01:30]} 10. f4 {[%emt 0:13:30]} d6 {[%emt 0:00:30] LiveBook: 16 Games} 11. Qe1 {[%emt 0:03:30] B49: Sicilian: Taimanov: 5 Nc3 Qc7 6 Be3 a6 7 Be2} Rc8 $146 {[%emt 0:01:30]} ({Predecessor:} 11... h5 12. Kh1 Be7 13. Bf3 h4 14. Rd1 h3 15. Qg3 hxg2+ 16. Qxg2 Nxd4 17. Bxd4 e5 18. fxe5 dxe5 {0-1 (27) Narmontas,M (2411)-Pavlidis,A (2532) Tallinn 2016}) 12. Rd1 {[%emt 0:02:30]} Na5 {[%emt 0:20:30]} 13. Bd3 {[%emt 0:09:30]} Nc4 {[%emt 0:02:30]} 14. Bxc4 {[%emt 0:08:30]} Qxc4 {[%emt 0:00:30]} 15. Bc1 {[%emt 0:00:00]} Be7 {[%emt 0:18:30]} 16. Rf3 {[%emt 0:03:00]} (16. e5 $5 {[%cal Re5f6]} Nd5 17. exd6 Bxd6 18. Nxe6 Nxc3 19. bxc3 fxe6 20. Rxd6 Qc5+ 21. Rd4 $11) 16... O-O {[%emt 0:06:30]} 17. Rh3 {[%emt 0:07:30]} Rfd8 {[%emt 0:11:30]} 18. Qh4 {[%emt 0:14:30]} Kf8 {[%emt 0:00:30]} 19. e5 {[%emt 0:10:30]} Ng8 {[%emt 0:01:30]} 20. Qf2 {[%emt 0:03:30]} Nh6 {[%emt 0:03:30]} 21. Qe2 {[%emt 0:10:21]} dxe5 {[%emt 0:01:30]} 22. Rxh6 {[%emt 0:01:04]} Qxe2 {[%emt 0:04:30]} 23. Ncxe2 {[%emt 0:00:45]} exd4 {[%emt 0:02:30]} 24. Rxh7 {[%emt 0:00:32]} Kg8 {[%emt 0:00:30]} 25. Rh3 {[%emt 0:00:30]} Rxc2 {[%emt 0:00:00]} 26. Rd2 {[%emt 0:01:17]} Rdc8 $19 {[%emt 0:03:44]} 27. b4 {[%emt 0:04:38]} Be4 {[%emt 0:02:44]} 28. g4 {[%emt 0:00:59]} d3 {[%emt 0:00:44]} 0-1